{"text_format":"1","workbook":"xlsx","n_sheets":9,"sheets":["データ表","システム設定","ラベル用_システム設定","リスト表","全項目印刷","一覧表印刷","はがき宛名","ラベル12枚","レポート原本"],"not_rendered":{"charts":0,"images":0,"macros":1,"external_links":0,"defined_names":1,"comments":1,"pivot_tables":0},"unopened":[],"bounds":{"document_bytes":16777216,"sheet_cells":100000,"rows_first":2000,"rows_last":500,"rows_between":2000,"halvings":0,"cell_chars":16384,"cell_head_chars":4096},"cells_cut":0,"cells_raw":0,"read":"whole","date_system":"1900"}

{"sheet":"データ表","index":0,"n_rows":35,"n_cols":103,"rows_kept":35,"cut":false,"hidden":false,"merged":[]}
[]
[]
[null,null,"日付","出勤者A","出勤者Aの売上","出勤者Aの売上目標","出勤者B","出勤者Bの売上","出勤者Bの売上目標","出勤者C","出勤者Cの売上","出勤者Cの売上目標","お店","お店の売上","お店の売上目標","今週の売上","今週の売上目標","今月の売上","今月の売上目標","今年の売上","今年の売上目標","家賃","光熱費 電気代","出費 駐車場代","光熱費 水道代","ウォーターサーバー代","雑誌代","人件費","利益","今日最低限必要な額","今月最低限必要な額","発注商品 A会社","発注商品 B会社","発注商品 C会社","そろそろ無くなるもの","報告内容","出勤者Aが明日する事","出勤者Bが明日する事","出勤者Cが明日する事","項目名38","項目名39","項目名40","項目名41","項目名42","項目名43","項目名44","項目名45","項目名46","項目名47","項目名48","項目名49","項目名50","項目名51","項目名52","項目名53","項目名54","項目名55","項目名56","項目名57","項目名58","項目名59","項目名60","項目名61","項目名62","項目名63","項目名64","項目名65","項目名66","項目名67","項目名68","項目名69","項目名70","項目名71","項目名72","項目名73","項目名74","項目名75","項目名76","項目名77","項目名78","項目名79","項目名80","項目名81","項目名82","項目名83","項目名84","項目名85","項目名86","項目名87","項目名88","項目名89","項目名90","項目名91","項目名92","項目名93","項目名94","項目名95","項目名96","項目名97","項目名98","項目名99","項目名100","関連フォルダ番号"]
[null,null,"2020-11-01","佐藤",20000,25000,"田中",30000,30000,"鈴木",19000,20000,"中央店",{"$f":"E4+H4+K4","v":69000},80000,null,null,null,null,null,null,null,null,null,null,null,null,null,null,10000,null,"アルコール消毒液","タオル３","水","水","明日は１３：００〜\n出勤に変更","発注掛け","売上確認","マット交換"]
[null,null,"2020-11-02","佐藤",15000,25000,"田中",25000,30000,"鈴木",18000,20000,"中央店",{"$f":"E5+H5+K5","v":58000},80000,null,null,null,null,null,null,null,null,null,null,null,null,null,null,10000]
[null,null,"2020-11-03","佐藤",30000,25000,"田中",32000,30000,"鈴木",25000,20000,"中央店",{"$f":"E6+H6+K6","v":87000},80000,null,null,null,null,null,null,null,null,null,null,null,null,null,null,10000]
[null,null,"2020-11-04","佐藤",18000,25000,"田中",19000,30000,"鈴木",20000,20000,"中央店",{"$f":"E7+H7+K7","v":57000},80000,null,null,null,null,null,null,null,null,null,null,null,null,null,null,10000]
[null,null,"2020-11-05","佐藤",20000,25000,"田中",28000,30000,"鈴木",19000,20000,"中央店",67000,80000,null,null,null,null,null,null,null,null,null,null,null,null,null,null,10000]
[null,null,"2020-11-06","佐藤",20000,25000,"田中",30000,30000,"鈴木",19000,20000,"中央店",69000,80000,null,null,null,null,null,null,null,null,null,null,null,null,null,null,10000]
[null,null,"2020-11-07","佐藤",15000,25000,"田中",25000,30000,"鈴木",18000,20000,"中央店",58000,80000,{"$f":"SUM(N4:N10)","v":465000},{"$f":"SUM(O4:O10)","v":560000},null,null,null,null,null,null,null,null,null,null,null,null,10000]
[null,null,"2020-11-08","佐藤",30000,25000,"田中",32000,30000,"鈴木",25000,20000,"中央店",87000,80000,null,null,null,null,null,null,null,null,null,null,null,null,null,null,10000]
[null,null,"2020-11-09","佐藤",18000,25000,"田中",19000,30000,"鈴木",20000,20000,"中央店",57000,80000,null,null,null,null,null,null,null,null,null,null,null,null,null,null,10000]
[null,null,"2020-11-10","佐藤",20000,25000,"田中",28000,30000,"鈴木",19000,20000,"中央店",67000,80000,null,null,null,null,null,null,null,null,null,null,null,null,null,null,10000]
[null,null,"2020-11-11","佐藤",20000,25000,"田中",30000,30000,"鈴木",19000,20000,"中央店",69000,80000,null,null,null,null,null,null,null,null,null,null,null,null,null,null,10000]
[null,null,"2020-11-12","佐藤",15000,25000,"田中",25000,30000,"鈴木",18000,20000,"中央店",58000,80000,null,null,null,null,null,null,null,null,null,null,null,null,null,null,10000]
[null,null,"2020-11-13","佐藤",30000,25000,"田中",32000,30000,"鈴木",25000,20000,"中央店",87000,80000,null,null,null,null,null,null,null,null,null,null,null,null,null,null,10000]
[null,null,"2020-11-14","佐藤",18000,25000,"田中",19000,30000,"鈴木",20000,20000,"中央店",57000,80000,{"$f":"SUM(N11:N17)","v":482000},{"$f":"SUM(O11:O17)","v":560000},null,null,null,null,null,null,null,null,null,null,null,null,10000]
[null,null,"2020-11-15","佐藤",20000,25000,"田中",28000,30000,"鈴木",19000,20000,"中央店",67000,80000,null,null,null,null,null,null,null,null,null,null,null,null,null,null,10000]
[null,null,"2020-11-16","佐藤",20000,25000,"田中",30000,30000,"鈴木",19000,20000,"中央店",69000,80000,null,null,null,null,null,null,null,null,null,null,null,null,null,null,10000]
[null,null,"2020-11-17","佐藤",15000,25000,"田中",25000,30000,"鈴木",18000,20000,"中央店",58000,80000,null,null,null,null,null,null,null,null,null,null,null,null,null,null,10000]
[null,null,"2020-11-18","佐藤",30000,25000,"田中",32000,30000,"鈴木",25000,20000,"中央店",87000,80000,null,null,null,null,null,null,null,null,null,null,null,null,null,null,10000]
[null,null,"2020-11-19","佐藤",18000,25000,"田中",19000,30000,"鈴木",20000,20000,"中央店",57000,80000,null,null,null,null,null,null,null,null,null,null,null,null,null,null,10000]
[null,null,"2020-11-20","佐藤",20000,25000,"田中",28000,30000,"鈴木",19000,20000,"中央店",67000,80000,null,null,null,null,null,null,null,null,null,null,null,null,null,null,10000]
[null,null,"2020-11-21","佐藤",20000,25000,"田中",30000,30000,"鈴木",19000,20000,"中央店",69000,80000,{"$f":"SUM(N18:N24)","v":474000},{"$f":"SUM(O18:O24)","v":560000},null,null,null,null,null,null,null,null,null,null,null,null,10000]
[null,null,"2020-11-22","佐藤",15000,25000,"田中",25000,30000,"鈴木",18000,20000,"中央店",58000,80000,null,null,null,null,null,null,null,null,null,null,null,null,null,null,10000]
[null,null,"2020-11-23","佐藤",30000,25000,"田中",32000,30000,"鈴木",25000,20000,"中央店",87000,80000,null,null,null,null,null,null,null,null,null,null,null,null,null,null,10000]
[null,null,"2020-11-24","佐藤",18000,25000,"田中",19000,30000,"鈴木",20000,20000,"中央店",57000,80000,null,null,null,null,null,null,null,null,null,null,null,null,null,null,10000]
[null,null,"2020-11-25","佐藤",20000,25000,"田中",28000,30000,"鈴木",19000,20000,"中央店",67000,80000,null,null,null,null,null,null,null,null,null,null,null,null,null,null,10000]
[null,null,"2020-11-26","佐藤",20000,25000,"田中",30000,30000,"鈴木",19000,20000,"中央店",69000,80000,null,null,null,null,null,null,null,null,null,null,null,null,null,null,10000]
[null,null,"2020-11-27","佐藤",15000,25000,"田中",25000,30000,"鈴木",18000,20000,"中央店",58000,80000,null,null,null,null,null,null,null,null,null,null,null,null,null,null,10000]
[null,null,"2020-11-28","佐藤",30000,25000,"田中",32000,30000,"鈴木",25000,20000,"中央店",87000,80000,{"$f":"SUM(N25:N31)","v":483000},{"$f":"SUM(O25:O31)","v":560000},null,null,null,null,null,null,null,null,null,null,null,null,10000]
[null,null,"2020-11-29","佐藤",18000,25000,"田中",19000,30000,"鈴木",20000,20000,"中央店",57000,80000,null,null,null,null,null,null,null,null,null,null,null,null,null,null,10000]
[null,null,"2020-11-30","佐藤",20000,25000,"田中",28000,30000,"鈴木",19000,20000,"中央店",67000,80000,null,null,{"$f":"SUM(P10+P17+P24+P31)","v":1904000},{"$f":"SUM(Q10+Q17+Q24+Q31)","v":2240000},null,null,200000,50000,20000,10000,15000,5000,600000,{"$f":"R33-V33-W33-X33-Y33-Z33-AA33-AB33","v":1004000},10000,{"$f":"SUM(AD4:AD33)","v":300000}]
[null,null,"2020-12-01"]
[null,null,"2020-12-02"]

{"sheet":"システム設定","index":1,"n_rows":102,"n_cols":26,"rows_kept":102,"cut":false,"hidden":false,"merged":[]}
[null,null,null,null,"<印刷作業領域>",null,null,"<項目条件設定>",null,null,"<一覧表印刷設定>",null,"<印刷シート設定>",null,null,null,"<保存：一覧表印刷設定>"]
[null,null,null,null,"項目名","設定セル",null,"計算項目","絞込項目","クイック","表示順序",null,"印刷シート名","種別","ページ枚数",null,"(1)","(2)","(3)","(4)","(5)","(6)","(7)","(8)","(9)","(10)"]
[null,null,null,null,"名前","佐藤花子",null,"×","文字列",null,3,null,"台帳印刷（１件を１ページ）","台帳",1,null,3]
[null,null,null,null,"ふりがな","サトウハナコ",null,"×","文字列",null,2,null,"はがき宛名印刷","台帳",1,null,2]
[null,null,null,null,"電話番号","0000********",null,"×",null,null,5,null,"ラベル12枚","ラベル",12,null,5]
[null,"<ユーザー設定>",null,null,"実際の年齢","８歳",null,"×","文字列",null,6,null,null,null,null,null,6]
[null,"項目名","設定値",null,"学年","小学三年生",null,"×","文字列",null,1,null,null,null,null,null,1]
[null,"郵便番号","812-0011",null,"案件で出せそうな年齢","１～４年生",null,"×","文字列"]
[null,"住所１","福岡市博多区",null,"身長",null,null,"×",null,null,7,null,null,null,null,null,7]
[null,"住所２","(マンション名など)",null,"体重",null,null,"×","文字列",null,4,null,null,null,null,null,4]
[null,"ユーザー名","日本アプリケーション開発",null,"B/W/H",null,null,"×"]
[null,"電話番号","TEL 092-123-4567",null,"住まい",null,null,"×"]
[null,"IME郵便番号",true,null,"連絡取れる時間","アルバイトをしているためAM中可能",null,"×"]
[null,null,null,null,"歯並び・歯の状況",null,null,"×"]
[null,"<並替設定>",null,null,"視力","メガネ",null,"×"]
[null,"並替名称","Column番号",null,"移動手段","市外であれば送迎手配 希望",null,"×"]
[null,"ふりがな"," 2",null,"付き添い者情報","母・働いているため動きにくい",null,"×"]
[null,"住所"," 4",null,"送迎手配","基本母",null,"×"]
[null,"来店区分"," 5",null,"宿泊先可能場所",null,null,"×"]
[null,"地区区分"," 6",null,"東京オーディション","可能",null,"×"]
[null,null,null,null,"家族構成","赤ちゃん３歳女の子",null,"×"]
[null,"<編集設定>",null,null,"方言・外国語","中国語、博多弁",null,"×"]
[null,"項目名","設定値",null,"特技","空手",null,"×"]
[null,"フォームタイプ","B",null,"出演歴",null,null,"×"]
[null,"フォーム倍率",100,null,"項目名23",null,null,"×"]
[null,"ラベル枚数初期値",4,null,"項目名24",null,null,"×"]
[null,"関連フォルダ項目番号",1,null,"項目名25",null,null,"×"]
[null,"PDFファイル項目番号",0,null,"項目名26",null,null,"×"]
[null,"ハイパーリンク項目番号",0,null,"項目名27",null,null,"×"]
[null,"ハイパーリンクON/OFF",0,null,"項目名28",null,null,"×"]
[null,null,null,null,"項目名29",null,null,"×"]
[null,null,null,null,"項目名30",null,null,"×"]
[null,null,null,null,"項目名31",null,null,"×"]
[null,null,null,null,"項目名32",null,null,"×"]
[null,null,null,null,"項目名33",null,null,"×"]
[null,null,null,null,"項目名34",null,null,"×"]
[null,null,null,null,"項目名35",null,null,"×"]
[null,null,null,null,"項目名36",null,null,"×"]
[null,null,null,null,"項目名37",null,null,"×"]
[null,null,null,null,"項目名38",null,null,"×"]
[null,null,null,null,"項目名39",null,null,"×"]
[null,null,null,null,"項目名40",null,null,"×"]
[null,null,null,null,"項目名41",null,null,"×"]
[null,null,null,null,"項目名42",null,null,"×"]
[null,null,null,null,"項目名43",null,null,"×"]
[null,null,null,null,"項目名44",null,null,"×"]
[null,null,null,null,"項目名45",null,null,"×"]
[null,null,null,null,"項目名46",null,null,"×"]
[null,null,null,null,"項目名47",null,null,"×"]
[null,null,null,null,"項目名48",null,null,"×"]
[null,null,null,null,"項目名49",null,null,"×"]
[null,null,null,null,"項目名50",null,null,"×"]
[null,null,null,null,"項目名51",null,null,"×"]
[null,null,null,null,"項目名52",null,null,"×"]
[null,null,null,null,"項目名53",null,null,"×"]
[null,null,null,null,"項目名54",null,null,"×"]
[null,null,null,null,"項目名55",null,null,"×"]
[null,null,null,null,"項目名56",null,null,"×"]
[null,null,null,null,"項目名57",null,null,"×"]
[null,null,null,null,"項目名58",null,null,"×"]
[null,null,null,null,"項目名59",null,null,"×"]
[null,null,null,null,"項目名60",null,null,"×"]
[null,null,null,null,"項目名61",null,null,"×"]
[null,null,null,null,"項目名62",null,null,"×"]
[null,null,null,null,"項目名63",null,null,"×"]
[null,null,null,null,"項目名64",null,null,"×"]
[null,null,null,null,"項目名65",null,null,"×"]
[null,null,null,null,"項目名66",null,null,"×"]
[null,null,null,null,"項目名67",null,null,"×"]
[null,null,null,null,"項目名68",null,null,"×"]
[null,null,null,null,"項目名69",null,null,"×"]
[null,null,null,null,"項目名70",null,null,"×"]
[null,null,null,null,"項目名71",null,null,"×"]
[null,null,null,null,"項目名72",null,null,"×"]
[null,null,null,null,"項目名73",null,null,"×"]
[null,null,null,null,"項目名74",null,null,"×"]
[null,null,null,null,"項目名75",null,null,"×"]
[null,null,null,null,"項目名76",null,null,"×"]
[null,null,null,null,"項目名77",null,null,"×"]
[null,null,null,null,"項目名78",null,null,"×"]
[null,null,null,null,"項目名79",null,null,"×"]
[null,null,null,null,"項目名80",null,null,"×"]
[null,null,null,null,"項目名81",null,null,"×"]
[null,null,null,null,"項目名82",null,null,"×"]
[null,null,null,null,"項目名83",null,null,"×"]
[null,null,null,null,"項目名84",null,null,"×"]
[null,null,null,null,"項目名85",null,null,"×"]
[null,null,null,null,"項目名86",null,null,"×"]
[null,null,null,null,"項目名87",null,null,"×"]
[null,null,null,null,"項目名88",null,null,"×"]
[null,null,null,null,"項目名89",null,null,"×"]
[null,null,null,null,"項目名90",null,null,"×"]
[null,null,null,null,"項目名91",null,null,"×"]
[null,null,null,null,"項目名92",null,null,"×"]
[null,null,null,null,"項目名93",null,null,"×"]
[null,null,null,null,"項目名94",null,null,"×"]
[null,null,null,null,"項目名95",null,null,"×"]
[null,null,null,null,"項目名96",null,null,"×"]
[null,null,null,null,"項目名97",null,null,"×"]
[null,null,null,null,"項目名98",null,null,"×"]
[null,null,null,null,"項目名99",null,null,"×"]
[null,null,null,null,"項目名100",null,null,"×"]

{"sheet":"ラベル用_システム設定","index":2,"n_rows":53,"n_cols":103,"rows_kept":53,"cut":false,"hidden":false,"merged":[]}
[]
[null,null,"<ラベル印刷設定領域>"]
[null,null,"番号","名前","ふりがな","電話番号","実際の年齢","学年","案件で出せそうな年齢","身長","体重","B/W/H","住まい","連絡取れる時間","歯並び・歯の状況","視力","移動手段","付き添い者情報","送迎手配","宿泊先可能場所","東京オーディション","家族構成","方言・外国語","特技","出演歴","項目名23","項目名24","項目名25","項目名26","項目名27","項目名28","項目名29","項目名30","項目名31","項目名32","項目名33","項目名34","項目名35","項目名36","項目名37","項目名38","項目名39","項目名40","項目名41","項目名42","項目名43","項目名44","項目名45","項目名46","項目名47","項目名48","項目名49","項目名50","項目名51","項目名52","項目名53","項目名54","項目名55","項目名56","項目名57","項目名58","項目名59","項目名60","項目名61","項目名62","項目名63","項目名64","項目名65","項目名66","項目名67","項目名68","項目名69","項目名70","項目名71","項目名72","項目名73","項目名74","項目名75","項目名76","項目名77","項目名78","項目名79","項目名80","項目名81","項目名82","項目名83","項目名84","項目名85","項目名86","項目名87","項目名88","項目名89","項目名90","項目名91","項目名92","項目名93","項目名94","項目名95","項目名96","項目名97","項目名98","項目名99","項目名100"]
[null,null,1,"佐藤花子","サトウハナコ","160-0001","東京都新宿区片町","○○マンション1号室","一般","東部","aaa@***","0000********",null,"冷蔵庫",6,null,null,null,"営業1課","担当2"]
[null,null,2]
[null,null,3]
[null,null,4]
[null,null,5]
[null,null,6]
[null,null,7]
[null,null,8]
[null,null,9]
[null,null,10]
[null,null,11]
[null,null,12]
[null,null,13]
[null,null,14]
[null,null,15]
[null,null,16]
[null,null,17]
[null,null,18]
[null,null,19]
[null,null,20]
[null,null,21]
[null,null,22]
[null,null,23]
[null,null,24]
[null,null,25]
[null,null,26]
[null,null,27]
[null,null,28]
[null,null,29]
[null,null,30]
[null,null,31]
[null,null,32]
[null,null,33]
[null,null,34]
[null,null,35]
[null,null,36]
[null,null,37]
[null,null,38]
[null,null,39]
[null,null,40]
[null,null,41]
[null,null,42]
[null,null,43]
[null,null,44]
[null,null,45]
[null,null,46]
[null,null,47]
[null,null,48]
[null,null,49]
[null,null,50]

{"sheet":"リスト表","index":3,"n_rows":502,"n_cols":102,"rows_kept":502,"cut":false,"hidden":false,"merged":[]}
[]
[null,"番号","名前","ふりがな","電話番号","実際の年齢","学年","案件で出せそうな年齢","身長","体重","B/W/H","住まい","連絡取れる時間","歯並び・歯の状況","視力","移動手段","付き添い者情報","送迎手配","宿泊先可能場所","東京オーディション","家族構成","方言・外国語","特技","出演歴","項目名23","項目名24","項目名25","項目名26","項目名27","項目名28","項目名29","項目名30","項目名31","項目名32","項目名33","項目名34","項目名35","項目名36","項目名37","項目名38","項目名39","項目名40","項目名41","項目名42","項目名43","項目名44","項目名45","項目名46","項目名47","項目名48","項目名49","項目名50","項目名51","項目名52","項目名53","項目名54","項目名55","項目名56","項目名57","項目名58","項目名59","項目名60","項目名61","項目名62","項目名63","項目名64","項目名65","項目名66","項目名67","項目名68","項目名69","項目名70","項目名71","項目名72","項目名73","項目名74","項目名75","項目名76","項目名77","項目名78","項目名79","項目名80","項目名81","項目名82","項目名83","項目名84","項目名85","項目名86","項目名87","項目名88","項目名89","項目名90","項目名91","項目名92","項目名93","項目名94","項目名95","項目名96","項目名97","項目名98","項目名99","項目名100"]
[null,1]
[null,2]
[null,3]
[null,4]
[null,5]
[null,6]
[null,7]
[null,8]
[null,9]
[null,10]
[null,11]
[null,12]
[null,13]
[null,14]
[null,15]
[null,16]
[null,17]
[null,18]
[null,19]
[null,20]
[null,21]
[null,22]
[null,23]
[null,24]
[null,25]
[null,26]
[null,27]
[null,28]
[null,29]
[null,30]
[null,31]
[null,32]
[null,33]
[null,34]
[null,35]
[null,36]
[null,37]
[null,38]
[null,39]
[null,40]
[null,41]
[null,42]
[null,43]
[null,44]
[null,45]
[null,46]
[null,47]
[null,48]
[null,49]
[null,50]
[null,51]
[null,52]
[null,53]
[null,54]
[null,55]
[null,56]
[null,57]
[null,58]
[null,59]
[null,60]
[null,61]
[null,62]
[null,63]
[null,64]
[null,65]
[null,66]
[null,67]
[null,68]
[null,69]
[null,70]
[null,71]
[null,72]
[null,73]
[null,74]
[null,75]
[null,76]
[null,77]
[null,78]
[null,79]
[null,80]
[null,81]
[null,82]
[null,83]
[null,84]
[null,85]
[null,86]
[null,87]
[null,88]
[null,89]
[null,90]
[null,91]
[null,92]
[null,93]
[null,94]
[null,95]
[null,96]
[null,97]
[null,98]
[null,99]
[null,100]
[null,101]
[null,102]
[null,103]
[null,104]
[null,105]
[null,106]
[null,107]
[null,108]
[null,109]
[null,110]
[null,111]
[null,112]
[null,113]
[null,114]
[null,115]
[null,116]
[null,117]
[null,118]
[null,119]
[null,120]
[null,121]
[null,122]
[null,123]
[null,124]
[null,125]
[null,126]
[null,127]
[null,128]
[null,129]
[null,130]
[null,131]
[null,132]
[null,133]
[null,134]
[null,135]
[null,136]
[null,137]
[null,138]
[null,139]
[null,140]
[null,141]
[null,142]
[null,143]
[null,144]
[null,145]
[null,146]
[null,147]
[null,148]
[null,149]
[null,150]
[null,151]
[null,152]
[null,153]
[null,154]
[null,155]
[null,156]
[null,157]
[null,158]
[null,159]
[null,160]
[null,161]
[null,162]
[null,163]
[null,164]
[null,165]
[null,166]
[null,167]
[null,168]
[null,169]
[null,170]
[null,171]
[null,172]
[null,173]
[null,174]
[null,175]
[null,176]
[null,177]
[null,178]
[null,179]
[null,180]
[null,181]
[null,182]
[null,183]
[null,184]
[null,185]
[null,186]
[null,187]
[null,188]
[null,189]
[null,190]
[null,191]
[null,192]
[null,193]
[null,194]
[null,195]
[null,196]
[null,197]
[null,198]
[null,199]
[null,200]
[null,201]
[null,202]
[null,203]
[null,204]
[null,205]
[null,206]
[null,207]
[null,208]
[null,209]
[null,210]
[null,211]
[null,212]
[null,213]
[null,214]
[null,215]
[null,216]
[null,217]
[null,218]
[null,219]
[null,220]
[null,221]
[null,222]
[null,223]
[null,224]
[null,225]
[null,226]
[null,227]
[null,228]
[null,229]
[null,230]
[null,231]
[null,232]
[null,233]
[null,234]
[null,235]
[null,236]
[null,237]
[null,238]
[null,239]
[null,240]
[null,241]
[null,242]
[null,243]
[null,244]
[null,245]
[null,246]
[null,247]
[null,248]
[null,249]
[null,250]
[null,251]
[null,252]
[null,253]
[null,254]
[null,255]
[null,256]
[null,257]
[null,258]
[null,259]
[null,260]
[null,261]
[null,262]
[null,263]
[null,264]
[null,265]
[null,266]
[null,267]
[null,268]
[null,269]
[null,270]
[null,271]
[null,272]
[null,273]
[null,274]
[null,275]
[null,276]
[null,277]
[null,278]
[null,279]
[null,280]
[null,281]
[null,282]
[null,283]
[null,284]
[null,285]
[null,286]
[null,287]
[null,288]
[null,289]
[null,290]
[null,291]
[null,292]
[null,293]
[null,294]
[null,295]
[null,296]
[null,297]
[null,298]
[null,299]
[null,300]
[null,301]
[null,302]
[null,303]
[null,304]
[null,305]
[null,306]
[null,307]
[null,308]
[null,309]
[null,310]
[null,311]
[null,312]
[null,313]
[null,314]
[null,315]
[null,316]
[null,317]
[null,318]
[null,319]
[null,320]
[null,321]
[null,322]
[null,323]
[null,324]
[null,325]
[null,326]
[null,327]
[null,328]
[null,329]
[null,330]
[null,331]
[null,332]
[null,333]
[null,334]
[null,335]
[null,336]
[null,337]
[null,338]
[null,339]
[null,340]
[null,341]
[null,342]
[null,343]
[null,344]
[null,345]
[null,346]
[null,347]
[null,348]
[null,349]
[null,350]
[null,351]
[null,352]
[null,353]
[null,354]
[null,355]
[null,356]
[null,357]
[null,358]
[null,359]
[null,360]
[null,361]
[null,362]
[null,363]
[null,364]
[null,365]
[null,366]
[null,367]
[null,368]
[null,369]
[null,370]
[null,371]
[null,372]
[null,373]
[null,374]
[null,375]
[null,376]
[null,377]
[null,378]
[null,379]
[null,380]
[null,381]
[null,382]
[null,383]
[null,384]
[null,385]
[null,386]
[null,387]
[null,388]
[null,389]
[null,390]
[null,391]
[null,392]
[null,393]
[null,394]
[null,395]
[null,396]
[null,397]
[null,398]
[null,399]
[null,400]
[null,401]
[null,402]
[null,403]
[null,404]
[null,405]
[null,406]
[null,407]
[null,408]
[null,409]
[null,410]
[null,411]
[null,412]
[null,413]
[null,414]
[null,415]
[null,416]
[null,417]
[null,418]
[null,419]
[null,420]
[null,421]
[null,422]
[null,423]
[null,424]
[null,425]
[null,426]
[null,427]
[null,428]
[null,429]
[null,430]
[null,431]
[null,432]
[null,433]
[null,434]
[null,435]
[null,436]
[null,437]
[null,438]
[null,439]
[null,440]
[null,441]
[null,442]
[null,443]
[null,444]
[null,445]
[null,446]
[null,447]
[null,448]
[null,449]
[null,450]
[null,451]
[null,452]
[null,453]
[null,454]
[null,455]
[null,456]
[null,457]
[null,458]
[null,459]
[null,460]
[null,461]
[null,462]
[null,463]
[null,464]
[null,465]
[null,466]
[null,467]
[null,468]
[null,469]
[null,470]
[null,471]
[null,472]
[null,473]
[null,474]
[null,475]
[null,476]
[null,477]
[null,478]
[null,479]
[null,480]
[null,481]
[null,482]
[null,483]
[null,484]
[null,485]
[null,486]
[null,487]
[null,488]
[null,489]
[null,490]
[null,491]
[null,492]
[null,493]
[null,494]
[null,495]
[null,496]
[null,497]
[null,498]
[null,499]
[null,500]

{"sheet":"全項目印刷","index":4,"n_rows":67,"n_cols":6,"rows_kept":67,"cut":false,"hidden":false,"merged":[[61,4,61,5]]}
[]
[null,"■このシートには、1レコードのデータを1枚に収めています。"]
[null,"※必要なデータを［システム設定］とリンク設定することで、必要なデータだけを印刷することができます。"]
[null,"※ここでは、データが整然と並べられていますが、レイアウトは自由に設計できます。"]
[]
[null,null,"内　　容（1-20）",null,null,"内　　容（21-40）"]
[null,{"$f":"システム設定!E3","v":"名前"},{"$f":"システム設定!$F$3","v":"佐藤花子"},null,{"$f":"システム設定!E23","v":"特技"},{"$f":"システム設定!$F$23","v":"空手"}]
[null,{"$f":"システム設定!E4","v":"ふりがな"},{"$f":"システム設定!$F$4","v":"サトウハナコ"},null,{"$f":"システム設定!E24","v":"出演歴"},{"$f":"システム設定!$F$24","v":0}]
[null,{"$f":"システム設定!E5","v":"電話番号"},{"$f":"システム設定!$F$5","v":"0000********"},null,{"$f":"システム設定!E25","v":"項目名23"},{"$f":"システム設定!$F$25","v":0}]
[null,{"$f":"システム設定!E6","v":"実際の年齢"},{"$f":"システム設定!$F$6","v":"８歳"},null,{"$f":"システム設定!E26","v":"項目名24"},{"$f":"システム設定!$F$26","v":0}]
[null,{"$f":"システム設定!E7","v":"学年"},{"$f":"システム設定!$F$7","v":"小学三年生"},null,{"$f":"システム設定!E27","v":"項目名25"},{"$f":"システム設定!$F$27","v":0}]
[null,{"$f":"システム設定!E8","v":"案件で出せそうな年齢"},{"$f":"システム設定!$F$8","v":"１～４年生"},null,{"$f":"システム設定!E28","v":"項目名26"},{"$f":"システム設定!$F$28","v":0}]
[null,{"$f":"システム設定!E9","v":"身長"},{"$f":"システム設定!$F$9","v":0},null,{"$f":"システム設定!E29","v":"項目名27"},{"$f":"システム設定!$F$29","v":0}]
[null,{"$f":"システム設定!E10","v":"体重"},{"$f":"システム設定!$F$10","v":0},null,{"$f":"システム設定!E30","v":"項目名28"},{"$f":"システム設定!$F$30","v":0}]
[null,{"$f":"システム設定!E11","v":"B/W/H"},{"$f":"システム設定!$F$11","v":0},null,{"$f":"システム設定!E31","v":"項目名29"},{"$f":"システム設定!$F$31","v":0}]
[null,{"$f":"システム設定!E12","v":"住まい"},{"$f":"システム設定!$F$12","v":0},null,{"$f":"システム設定!E32","v":"項目名30"},{"$f":"システム設定!$F$32","v":0}]
[null,{"$f":"システム設定!E13","v":"連絡取れる時間"},{"$f":"システム設定!$F$13","v":"アルバイトをしているためAM中可能"},null,{"$f":"システム設定!E33","v":"項目名31"},{"$f":"システム設定!$F$33","v":0}]
[null,{"$f":"システム設定!E14","v":"歯並び・歯の状況"},{"$f":"システム設定!$F$14","v":0},null,{"$f":"システム設定!E34","v":"項目名32"},{"$f":"システム設定!$F$34","v":0}]
[null,{"$f":"システム設定!E15","v":"視力"},{"$f":"システム設定!$F$15","v":"メガネ"},null,{"$f":"システム設定!E35","v":"項目名33"},{"$f":"システム設定!$F$35","v":0}]
[null,{"$f":"システム設定!E16","v":"移動手段"},{"$f":"システム設定!$F$16","v":"市外であれば送迎手配 希望"},null,{"$f":"システム設定!E36","v":"項目名34"},{"$f":"システム設定!$F$36","v":0}]
[null,{"$f":"システム設定!E17","v":"付き添い者情報"},{"$f":"システム設定!$F$17","v":"母・働いているため動きにくい"},null,{"$f":"システム設定!E37","v":"項目名35"},{"$f":"システム設定!$F$37","v":0}]
[null,{"$f":"システム設定!E18","v":"送迎手配"},{"$f":"システム設定!$F$18","v":"基本母"},null,{"$f":"システム設定!E38","v":"項目名36"},{"$f":"システム設定!$F$38","v":0}]
[null,{"$f":"システム設定!E19","v":"宿泊先可能場所"},{"$f":"システム設定!$F$19","v":0},null,{"$f":"システム設定!E39","v":"項目名37"},{"$f":"システム設定!$F$39","v":0}]
[null,{"$f":"システム設定!E20","v":"東京オーディション"},{"$f":"システム設定!$F$20","v":"可能"},null,{"$f":"システム設定!E40","v":"項目名38"},{"$f":"システム設定!$F$40","v":0}]
[null,{"$f":"システム設定!E21","v":"家族構成"},{"$f":"システム設定!$F$21","v":"赤ちゃん３歳女の子"},null,{"$f":"システム設定!E41","v":"項目名39"},{"$f":"システム設定!$F$41","v":0}]
[null,{"$f":"システム設定!E22","v":"方言・外国語"},{"$f":"システム設定!$F$22","v":"中国語、博多弁"},null,{"$f":"システム設定!E42","v":"項目名40"},{"$f":"システム設定!$F$42","v":0}]
[]
[null,null,"内　　容（41-60）",null,null,"内　　容（61-80）"]
[null,{"$f":"システム設定!E43","v":"項目名41"},{"$f":"システム設定!$F$43","v":0},null,{"$f":"システム設定!E63","v":"項目名61"},{"$f":"システム設定!$F$63","v":0}]
[null,{"$f":"システム設定!E44","v":"項目名42"},{"$f":"システム設定!$F$44","v":0},null,{"$f":"システム設定!E64","v":"項目名62"},{"$f":"システム設定!$F$64","v":0}]
[null,{"$f":"システム設定!E45","v":"項目名43"},{"$f":"システム設定!$F$45","v":0},null,{"$f":"システム設定!E65","v":"項目名63"},{"$f":"システム設定!$F$65","v":0}]
[null,{"$f":"システム設定!E46","v":"項目名44"},{"$f":"システム設定!$F$46","v":0},null,{"$f":"システム設定!E66","v":"項目名64"},{"$f":"システム設定!$F$66","v":0}]
[null,{"$f":"システム設定!E47","v":"項目名45"},{"$f":"システム設定!$F$47","v":0},null,{"$f":"システム設定!E67","v":"項目名65"},{"$f":"システム設定!$F$67","v":0}]
[null,{"$f":"システム設定!E48","v":"項目名46"},{"$f":"システム設定!$F$48","v":0},null,{"$f":"システム設定!E68","v":"項目名66"},{"$f":"システム設定!$F$68","v":0}]
[null,{"$f":"システム設定!E49","v":"項目名47"},{"$f":"システム設定!$F$49","v":0},null,{"$f":"システム設定!E69","v":"項目名67"},{"$f":"システム設定!$F$69","v":0}]
[null,{"$f":"システム設定!E50","v":"項目名48"},{"$f":"システム設定!$F$50","v":0},null,{"$f":"システム設定!E70","v":"項目名68"},{"$f":"システム設定!$F$70","v":0}]
[null,{"$f":"システム設定!E51","v":"項目名49"},{"$f":"システム設定!$F$51","v":0},null,{"$f":"システム設定!E71","v":"項目名69"},{"$f":"システム設定!$F$71","v":0}]
[null,{"$f":"システム設定!E52","v":"項目名50"},{"$f":"システム設定!$F$52","v":0},null,{"$f":"システム設定!E72","v":"項目名70"},{"$f":"システム設定!$F$72","v":0}]
[null,{"$f":"システム設定!E53","v":"項目名51"},{"$f":"システム設定!$F$53","v":0},null,{"$f":"システム設定!E73","v":"項目名71"},{"$f":"システム設定!$F$73","v":0}]
[null,{"$f":"システム設定!E54","v":"項目名52"},{"$f":"システム設定!$F$54","v":0},null,{"$f":"システム設定!E74","v":"項目名72"},{"$f":"システム設定!$F$74","v":0}]
[null,{"$f":"システム設定!E55","v":"項目名53"},{"$f":"システム設定!$F$55","v":0},null,{"$f":"システム設定!E75","v":"項目名73"},{"$f":"システム設定!$F$75","v":0}]
[null,{"$f":"システム設定!E56","v":"項目名54"},{"$f":"システム設定!$F$56","v":0},null,{"$f":"システム設定!E76","v":"項目名74"},{"$f":"システム設定!$F$76","v":0}]
[null,{"$f":"システム設定!E57","v":"項目名55"},{"$f":"システム設定!$F$57","v":0},null,{"$f":"システム設定!E77","v":"項目名75"},{"$f":"システム設定!$F$77","v":0}]
[null,{"$f":"システム設定!E58","v":"項目名56"},{"$f":"システム設定!$F$58","v":0},null,{"$f":"システム設定!E78","v":"項目名76"},{"$f":"システム設定!$F$78","v":0}]
[null,{"$f":"システム設定!E59","v":"項目名57"},{"$f":"システム設定!$F$59","v":0},null,{"$f":"システム設定!E79","v":"項目名77"},{"$f":"システム設定!$F$79","v":0}]
[null,{"$f":"システム設定!E60","v":"項目名58"},{"$f":"システム設定!$F$60","v":0},null,{"$f":"システム設定!E80","v":"項目名78"},{"$f":"システム設定!$F$80","v":0}]
[null,{"$f":"システム設定!E61","v":"項目名59"},{"$f":"システム設定!$F$61","v":0},null,{"$f":"システム設定!E81","v":"項目名79"},{"$f":"システム設定!$F$81","v":0}]
[null,{"$f":"システム設定!E62","v":"項目名60"},{"$f":"システム設定!$F$62","v":0},null,{"$f":"システム設定!E82","v":"項目名80"},{"$f":"システム設定!$F$82","v":0}]
[]
[null,null,"内　　容（81-90）",null,null,"内　　容（91-100）"]
[null,{"$f":"システム設定!E83","v":"項目名81"},{"$f":"システム設定!F83","v":0},null,{"$f":"システム設定!E93","v":"項目名91"},{"$f":"システム設定!F93","v":0}]
[null,{"$f":"システム設定!E84","v":"項目名82"},{"$f":"システム設定!F84","v":0},null,{"$f":"システム設定!E94","v":"項目名92"},{"$f":"システム設定!F94","v":0}]
[null,{"$f":"システム設定!E85","v":"項目名83"},{"$f":"システム設定!F85","v":0},null,{"$f":"システム設定!E95","v":"項目名93"},{"$f":"システム設定!F95","v":0}]
[null,{"$f":"システム設定!E86","v":"項目名84"},{"$f":"システム設定!F86","v":0},null,{"$f":"システム設定!E96","v":"項目名94"},{"$f":"システム設定!F96","v":0}]
[null,{"$f":"システム設定!E87","v":"項目名85"},{"$f":"システム設定!F87","v":0},null,{"$f":"システム設定!E97","v":"項目名95"},{"$f":"システム設定!F97","v":0}]
[null,{"$f":"システム設定!E88","v":"項目名86"},{"$f":"システム設定!F88","v":0},null,{"$f":"システム設定!E98","v":"項目名96"},{"$f":"システム設定!F98","v":0}]
[null,{"$f":"システム設定!E89","v":"項目名87"},{"$f":"システム設定!F89","v":0},null,{"$f":"システム設定!E99","v":"項目名97"},{"$f":"システム設定!F99","v":0}]
[null,{"$f":"システム設定!E90","v":"項目名88"},{"$f":"システム設定!F90","v":0},null,{"$f":"システム設定!E100","v":"項目名98"},{"$f":"システム設定!F100","v":0}]
[null,{"$f":"システム設定!E91","v":"項目名89"},{"$f":"システム設定!F91","v":0},null,{"$f":"システム設定!E101","v":"項目名99"},{"$f":"システム設定!F101","v":0}]
[null,{"$f":"システム設定!E92","v":"項目名90"},{"$f":"システム設定!F92","v":0},null,{"$f":"システム設定!E102","v":"項目名100"},{"$f":"システム設定!F102","v":0}]
[]
[null,null,null,null,"補助処理＞システム設定　に登録したデータ"]
[null,null,null,null,{"$f":"システム設定!B8","v":"郵便番号"},{"$f":"システム設定!C8","v":"812-0011"}]
[null,null,null,null,{"$f":"システム設定!B9","v":"住所１"},{"$f":"システム設定!C9","v":"福岡市博多区"}]
[null,null,null,null,{"$f":"システム設定!B10","v":"住所２"},{"$f":"システム設定!C10","v":"(マンション名など)"}]
[null,null,null,null,{"$f":"システム設定!B11","v":"ユーザー名"},{"$f":"システム設定!C11","v":"日本アプリケーション開発"}]
[null,null,null,null,{"$f":"システム設定!B12","v":"電話番号"},{"$f":"システム設定!C12","v":"TEL 092-123-4567"}]

{"sheet":"一覧表印刷","index":5,"n_rows":8,"n_cols":9,"rows_kept":8,"cut":false,"hidden":false,"merged":[]}
[]
[]
[null,null,"建物名","ふりがな","名前","メールアドレス","郵便番号","住所","地区区分"]
[null,null,"○○マンション1号室","サトウハナコ","佐藤花子","aaa@***","160-0001","東京都新宿区片町","東部"]
[null,null,"1丁目2番3号","タナカイチロウ","田中一郎","bbb@***","160-0002","東京都新宿区坂町","西部"]
[null,null,"△△マンション1001号室","スズキジロウ","鈴木二郎","ccc@***","160-0003","東京都新宿区本塩町","南部"]
[null,null,null,"サトウサブロウ","佐藤三郎","ddd@***","160-0004","東京都新宿区四谷","南部"]
[null,null,null,"タナカシロウ","田中四郎","eee@***","160-0005","東京都新宿区愛住町","北部"]

{"sheet":"はがき宛名","index":6,"n_rows":15,"n_cols":11,"rows_kept":15,"cut":false,"hidden":false,"merged":[[14,10,15,32],[10,10,11,32],[6,10,7,32],[8,10,9,32]]}
[]
[]
[]
[]
[]
[]
[null,null,null,null,null,null,null,null,null,null,{"$f":"システム設定!$F$5","v":"0000********"}]
[]
[null,null,null,null,null,null,null,null,null,null,{"$f":"システム設定!$F$6","v":"８歳"}]
[]
[null,null,null,null,null,null,null,null,null,null,{"$f":"システム設定!$F$7","v":"小学三年生"}]
[]
[]
[]
[null,null,null,null,null,null,null,null,null,null,{"$f":"システム設定!$F$3 & IF(システム設定!$F$3=\"\",\"\",\"　様\")","v":"佐藤花子　様"}]

{"sheet":"ラベル12枚","index":7,"n_rows":62,"n_cols":80,"rows_kept":62,"cut":false,"hidden":false,"merged":[]}
[]
[null,"+",null,null,null,null,null,null,null,null,null,null,null,null,null,null,null,null,null,null,null,null,null,null,null,null,null,null,null,null,null,null,null,null,null,null,null,null,null,null,"+",null,null,null,null,null,null,null,null,null,null,null,null,null,null,null,null,null,null,null,null,null,null,null,null,null,null,null,null,null,null,null,null,null,null,null,null,null,null,"+"]
[]
[null,null,null,null,null,null,null,{"$f":"ラベル用_システム設定!$F$4","v":"160-0001"},null,null,null,null,null,null,null,null,null,null,null,null,null,null,null,null,null,null,null,null,null,null,null,null,null,null,null,null,null,null,null,null,null,null,null,null,null,null,{"$f":"ラベル用_システム設定!$F$5","v":0}]
[null,null,null,null,null,null,null,{"$f":"ラベル用_システム設定!$G$4","v":"東京都新宿区片町"},null,null,null,null,null,null,null,null,null,null,null,null,null,null,null,null,null,null,null,null,null,null,null,null,null,null,null,null,null,null,null,null,null,null,null,null,null,null,{"$f":"ラベル用_システム設定!$G$5","v":0}]
[null,null,null,null,null,null,null,{"$f":"ラベル用_システム設定!$H$4","v":"○○マンション1号室"},null,null,null,null,null,null,null,null,null,null,null,null,null,null,null,null,null,null,null,null,null,null,null,null,null,null,null,null,null,null,null,null,null,null,null,null,null,null,{"$f":"ラベル用_システム設定!$H$5","v":0}]
[]
[null,null,null,null,null,null,null,{"$f":"ラベル用_システム設定!$D$4 &IF(ラベル用_システム設定!$D$4=\"\",\"\",\"　様\")","v":"佐藤花子　様"},null,null,null,null,null,null,null,null,null,null,null,null,null,null,null,null,null,null,null,null,null,null,null,null,null,null,null,null,null,null,null,null,null,null,null,null,null,null,{"$f":"ラベル用_システム設定!$D$5 & IF(ラベル用_システム設定!$D$5=\"\",\"\",\"　様\")","v":""}]
[]
[]
[]
[null,"+",null,null,null,null,null,null,null,null,null,null,null,null,null,null,null,null,null,null,null,null,null,null,null,null,null,null,null,null,null,null,null,null,null,null,null,null,null,null,"+",null,null,null,null,null,null,null,null,null,null,null,null,null,null,null,null,null,null,null,null,null,null,null,null,null,null,null,null,null,null,null,null,null,null,null,null,null,null,"+"]
[]
[null,null,null,null,null,null,null,{"$f":"ラベル用_システム設定!$F$6","v":0},null,null,null,null,null,null,null,null,null,null,null,null,null,null,null,null,null,null,null,null,null,null,null,null,null,null,null,null,null,null,null,null,null,null,null,null,null,null,{"$f":"ラベル用_システム設定!$F$7","v":0}]
[null,null,null,null,null,null,null,{"$f":"ラベル用_システム設定!$G$6","v":0},null,null,null,null,null,null,null,null,null,null,null,null,null,null,null,null,null,null,null,null,null,null,null,null,null,null,null,null,null,null,null,null,null,null,null,null,null,null,{"$f":"ラベル用_システム設定!$G$7","v":0}]
[null,null,null,null,null,null,null,{"$f":"ラベル用_システム設定!$H$6","v":0},null,null,null,null,null,null,null,null,null,null,null,null,null,null,null,null,null,null,null,null,null,null,null,null,null,null,null,null,null,null,null,null,null,null,null,null,null,null,{"$f":"ラベル用_システム設定!$H$7","v":0}]
[]
[null,null,null,null,null,null,null,{"$f":"ラベル用_システム設定!$D$6 &IF(ラベル用_システム設定!$D$6=\"\",\"\",\"　様\")","v":""},null,null,null,null,null,null,null,null,null,null,null,null,null,null,null,null,null,null,null,null,null,null,null,null,null,null,null,null,null,null,null,null,null,null,null,null,null,null,{"$f":"ラベル用_システム設定!$D$7 &IF(ラベル用_システム設定!$D$7=\"\",\"\",\"　様\")","v":""}]
[]
[]
[]
[null,"+",null,null,null,null,null,null,null,null,null,null,null,null,null,null,null,null,null,null,null,null,null,null,null,null,null,null,null,null,null,null,null,null,null,null,null,null,null,null,"+",null,null,null,null,null,null,null,null,null,null,null,null,null,null,null,null,null,null,null,null,null,null,null,null,null,null,null,null,null,null,null,null,null,null,null,null,null,null,"+"]
[]
[null,null,null,null,null,null,null,{"$f":"ラベル用_システム設定!$F$8","v":0},null,null,null,null,null,null,null,null,null,null,null,null,null,null,null,null,null,null,null,null,null,null,null,null,null,null,null,null,null,null,null,null,null,null,null,null,null,null,{"$f":"ラベル用_システム設定!$F$9","v":0}]
[null,null,null,null,null,null,null,{"$f":"ラベル用_システム設定!$G$8","v":0},null,null,null,null,null,null,null,null,null,null,null,null,null,null,null,null,null,null,null,null,null,null,null,null,null,null,null,null,null,null,null,null,null,null,null,null,null,null,{"$f":"ラベル用_システム設定!$G$9","v":0}]
[null,null,null,null,null,null,null,{"$f":"ラベル用_システム設定!$H$8","v":0},null,null,null,null,null,null,null,null,null,null,null,null,null,null,null,null,null,null,null,null,null,null,null,null,null,null,null,null,null,null,null,null,null,null,null,null,null,null,{"$f":"ラベル用_システム設定!$H$9","v":0}]
[]
[null,null,null,null,null,null,null,{"$f":"ラベル用_システム設定!$D$8 &IF(ラベル用_システム設定!$D$8=\"\",\"\",\"　様\")","v":""},null,null,null,null,null,null,null,null,null,null,null,null,null,null,null,null,null,null,null,null,null,null,null,null,null,null,null,null,null,null,null,null,null,null,null,null,null,null,{"$f":"ラベル用_システム設定!$D$9 & IF(ラベル用_システム設定!$D$9=\"\",\"\",\"　様\")","v":""}]
[]
[]
[]
[null,"+",null,null,null,null,null,null,null,null,null,null,null,null,null,null,null,null,null,null,null,null,null,null,null,null,null,null,null,null,null,null,null,null,null,null,null,null,null,null,"+",null,null,null,null,null,null,null,null,null,null,null,null,null,null,null,null,null,null,null,null,null,null,null,null,null,null,null,null,null,null,null,null,null,null,null,null,null,null,"+"]
[]
[null,null,null,null,null,null,null,{"$f":"ラベル用_システム設定!$F$10","v":0},null,null,null,null,null,null,null,null,null,null,null,null,null,null,null,null,null,null,null,null,null,null,null,null,null,null,null,null,null,null,null,null,null,null,null,null,null,null,{"$f":"ラベル用_システム設定!$F$11","v":0}]
[null,null,null,null,null,null,null,{"$f":"ラベル用_システム設定!$G$10","v":0},null,null,null,null,null,null,null,null,null,null,null,null,null,null,null,null,null,null,null,null,null,null,null,null,null,null,null,null,null,null,null,null,null,null,null,null,null,null,{"$f":"ラベル用_システム設定!$G$11","v":0}]
[null,null,null,null,null,null,null,{"$f":"ラベル用_システム設定!$H$10","v":0},null,null,null,null,null,null,null,null,null,null,null,null,null,null,null,null,null,null,null,null,null,null,null,null,null,null,null,null,null,null,null,null,null,null,null,null,null,null,{"$f":"ラベル用_システム設定!$H$11","v":0}]
[]
[null,null,null,null,null,null,null,{"$f":"ラベル用_システム設定!$D$10 & IF(ラベル用_システム設定!$D$10=\"\",\"\",\"　様\")","v":""},null,null,null,null,null,null,null,null,null,null,null,null,null,null,null,null,null,null,null,null,null,null,null,null,null,null,null,null,null,null,null,null,null,null,null,null,null,null,{"$f":"ラベル用_システム設定!$D$11 & IF(ラベル用_システム設定!$D$11=\"\",\"\",\"　様\")","v":""}]
[]
[]
[]
[null,"+",null,null,null,null,null,null,null,null,null,null,null,null,null,null,null,null,null,null,null,null,null,null,null,null,null,null,null,null,null,null,null,null,null,null,null,null,null,null,"+",null,null,null,null,null,null,null,null,null,null,null,null,null,null,null,null,null,null,null,null,null,null,null,null,null,null,null,null,null,null,null,null,null,null,null,null,null,null,"+"]
[]
[null,null,null,null,null,null,null,{"$f":"ラベル用_システム設定!$F$12","v":0},null,null,null,null,null,null,null,null,null,null,null,null,null,null,null,null,null,null,null,null,null,null,null,null,null,null,null,null,null,null,null,null,null,null,null,null,null,null,{"$f":"ラベル用_システム設定!$F$13","v":0}]
[null,null,null,null,null,null,null,{"$f":"ラベル用_システム設定!$G$12","v":0},null,null,null,null,null,null,null,null,null,null,null,null,null,null,null,null,null,null,null,null,null,null,null,null,null,null,null,null,null,null,null,null,null,null,null,null,null,null,{"$f":"ラベル用_システム設定!$G$13","v":0}]
[null,null,null,null,null,null,null,{"$f":"ラベル用_システム設定!$H$12","v":0},null,null,null,null,null,null,null,null,null,null,null,null,null,null,null,null,null,null,null,null,null,null,null,null,null,null,null,null,null,null,null,null,null,null,null,null,null,null,{"$f":"ラベル用_システム設定!$H$13","v":0}]
[]
[null,null,null,null,null,null,null,{"$f":"ラベル用_システム設定!$D$12 &IF(ラベル用_システム設定!$D$12=\"\",\"\",\"　様\")","v":""},null,null,null,null,null,null,null,null,null,null,null,null,null,null,null,null,null,null,null,null,null,null,null,null,null,null,null,null,null,null,null,null,null,null,null,null,null,null,{"$f":"ラベル用_システム設定!$D$13 & IF(ラベル用_システム設定!$D$13=\"\",\"\",\"　様\")","v":""}]
[]
[]
[]
[null,"+",null,null,null,null,null,null,null,null,null,null,null,null,null,null,null,null,null,null,null,null,null,null,null,null,null,null,null,null,null,null,null,null,null,null,null,null,null,null,"+",null,null,null,null,null,null,null,null,null,null,null,null,null,null,null,null,null,null,null,null,null,null,null,null,null,null,null,null,null,null,null,null,null,null,null,null,null,null,"+"]
[]
[null,null,null,null,null,null,null,{"$f":"ラベル用_システム設定!$F$14","v":0},null,null,null,null,null,null,null,null,null,null,null,null,null,null,null,null,null,null,null,null,null,null,null,null,null,null,null,null,null,null,null,null,null,null,null,null,null,null,{"$f":"ラベル用_システム設定!$F$15","v":0}]
[null,null,null,null,null,null,null,{"$f":"ラベル用_システム設定!$G$14","v":0},null,null,null,null,null,null,null,null,null,null,null,null,null,null,null,null,null,null,null,null,null,null,null,null,null,null,null,null,null,null,null,null,null,null,null,null,null,null,{"$f":"ラベル用_システム設定!$G$15","v":0}]
[null,null,null,null,null,null,null,{"$f":"ラベル用_システム設定!$H$14","v":0},null,null,null,null,null,null,null,null,null,null,null,null,null,null,null,null,null,null,null,null,null,null,null,null,null,null,null,null,null,null,null,null,null,null,null,null,null,null,{"$f":"ラベル用_システム設定!$H$15","v":0}]
[]
[null,null,null,null,null,null,null,{"$f":"ラベル用_システム設定!$D$14 & IF(ラベル用_システム設定!$D$14=\"\",\"\",\"　様\")","v":""},null,null,null,null,null,null,null,null,null,null,null,null,null,null,null,null,null,null,null,null,null,null,null,null,null,null,null,null,null,null,null,null,null,null,null,null,null,null,{"$f":"ラベル用_システム設定!$D$15 & IF(ラベル用_システム設定!$D$15=\"\",\"\",\"　様\")","v":""}]
[]
[]
[]
[null,"+",null,null,null,null,null,null,null,null,null,null,null,null,null,null,null,null,null,null,null,null,null,null,null,null,null,null,null,null,null,null,null,null,null,null,null,null,null,null,"+",null,null,null,null,null,null,null,null,null,null,null,null,null,null,null,null,null,null,null,null,null,null,null,null,null,null,null,null,null,null,null,null,null,null,null,null,null,null,"+"]

{"sheet":"レポート原本","index":8,"n_rows":0,"n_cols":0,"rows_kept":0,"cut":false,"hidden":false,"merged":[]}